bitfinex/quotes_BTCUSD_20250102
["timestamp","ask_amount","ask_price","bid_price","bid_amount"]
[1735782456884,1.2231169,95077.0,95076.0,0.0813002]
[1735782457313,1.23780357,95077.0,95076.0,0.0813002]
[1735782458352,1.22131867,95077.0,95076.0,0.0813002]
[1735782459189,1.22232959,95077.0,95076.0,0.0813002]
[1735782461335,1.22232959,95077.0,95076.0,2e-07]
[1735782461543,1.22232959,95077.0,95063.0,0.0462]
[1735782461544,0.1,95075.0,95073.0,5e-07]
[1735782461751,2.511808,95074.0,95073.0,5e-07]
[1735782461962,0.37504867,95074.0,95073.0,5e-07]
[1735782462384,0.47504867,95074.0,95073.0,5e-07]
[1735782462595,0.560377,95067.0,95066.0,8e-07]
[1735782462799,0.66436332,95067.0,95066.0,8e-07]
[1735782463005,0.68006184,95067.0,95066.0,8e-07]
[1735782463644,0.70306184,95067.0,95066.0,8e-07]
[1735782463868,0.70306184,95067.0,95066.0,9.5e-07]
[1735782464081,0.71206184,95067.0,95066.0,9.5e-07]
[1735782464285,0.70306184,95067.0,95066.0,9.5e-07]
[1735782464689,0.71606184,95067.0,95066.0,9.5e-07]
[1735782465200,1.21606184,95067.0,95066.0,9.5e-07]
[1735782465772,1.20706184,95067.0,95066.0,9.5e-07]
[1735782466190,1.21606184,95067.0,95066.0,9.5e-07]
[1735782466390,1.20306184,95067.0,95066.0,9.5e-07]
[1735782466774,1.2325517,95067.0,95066.0,9.5e-07]
[1735782467445,1.21206184,95067.0,95066.0,9.5e-07]
[1735782467647,1.20806184,95067.0,95066.0,9.5e-07]
[1735782467847,1.21706184,95067.0,95066.0,9.5e-07]
[1735782468166,1.21206184,95067.0,95066.0,9.5e-07]
[1735782468451,1.21606184,95067.0,95066.0,9.5e-07]
[1735782468657,1.20137517,95067.0,95066.0,3.5e-07]
[1735782468856,1.21606184,95067.0,95066.0,3.5e-07]
[1735782469108,1.20706184,95067.0,95066.0,3.5e-07]
[1735782469478,1.21606184,95067.0,95066.0,3.5e-07]
[1735782469680,1.20306184,95067.0,95066.0,3.5e-07]
[1735782469908,1.21206184,95067.0,95066.0,3.5e-07]
[1735782470083,1.21606184,95067.0,95066.0,3.5e-07]
[1735782470424,1.21206184,95067.0,95066.0,3.5e-07]
[1735782470836,1.21606184,95067.0,95066.0,3.5e-07]
[1735782471829,1.17736332,95067.0,95066.0,3.5e-07]
[1735782472252,1.19306269,95067.0,95066.0,3.5e-07]
[1735782476061,1.20955127,95067.0,95066.0,3.5e-07]
[1735782478497,0.210406,95054.0,95045.0,0.0455]
[1735782478672,1.824143,95053.0,95045.0,0.04564841]
[1735782478896,0.15,95051.0,95045.0,0.04564841]
[1735782479012,0.360424,95046.0,95045.0,0.04564841]
[1735782479217,1.634765,95046.0,95045.0,0.04564841]
[1735782479419,1.64945167,95046.0,95045.0,0.04564841]
[1735782479629,1.65046535,95046.0,95045.0,0.04564841]
[1735782480427,0.855138,95046.0,95045.0,0.04564841]
[1735782480632,0.62754,95046.0,95045.0,0.04564841]
[1735782481561,0.64222667,95046.0,95045.0,0.12124841]
[1735782481983,0.62754,95046.0,95045.0,0.12124841]
[1735782482189,0.62754,95046.0,95045.0,0.12224841]
[1735782482387,0.62454,95046.0,95045.0,0.12224841]
[1735782483385,0.6410293,95046.0,95045.0,0.12224841]
[1735782483639,0.62454,95046.0,95045.0,0.12224841]
[1735782486546,0.64102933,95046.0,95045.0,0.12224841]
[1735782488392,0.37691333,95046.0,95045.0,0.12224841]
[1735782488542,0.75311233,95046.0,95045.0,0.12224841]
[1735782490365,0.736623,95046.0,95045.0,0.12224841]
[1735782492123,0.736623,95046.0,95045.0,0.12233381]
[1735782492891,0.586623,95046.0,95045.0,0.12233381]
[1735782493104,0.210424,95046.0,95045.0,0.22632013]
[1735782493526,0.210424,95046.0,95045.0,0.23067612]
[1735782493718,0.360424,95046.0,95045.0,0.23067612]
[1735782493921,0.360424,95046.0,95045.0,0.22967612]
[1735782494206,0.360424,95046.0,95045.0,0.23067612]
[1735782494412,0.361424,95046.0,95045.0,0.23067612]
[1735782494830,0.361424,95046.0,95045.0,0.22967612]
[1735782495008,0.361424,95046.0,95045.0,0.23067612]
[1735782495616,0.211424,95046.0,95045.0,0.23067612]
[1735782495974,0.210424,95046.0,95045.0,0.23067612]
[1735782496392,0.001,95046.0,95045.0,0.10957612]
[1735782496813,0.210413,95051.0,95045.0,0.10957612]
[1735782497135,0.210413,95051.0,95046.0,0.10398632]
[1735782497432,0.210413,95051.0,95047.0,0.1286]
[1735782497573,0.210413,95051.0,95048.0,0.10398632]
[1735782497787,0.210413,95051.0,95049.0,0.00435198]
[1735782497985,0.2104,95057.0,95052.0,0.0463]
[1735782498209,0.2104,95057.0,95054.0,0.0463]
[1735782498472,0.15,95056.0,95055.0,0.10833228]
[1735782498708,0.210395,95059.0,95056.0,0.0463]
[1735782498934,0.210386,95064.0,95058.0,0.0463]
[1735782499133,0.210386,95064.0,95059.0,0.10398632]
[1735782499306,0.15,95063.0,95060.0,0.0463]
[1735782499522,0.210389,95062.0,95061.0,0.14928632]
[1735782499666,0.210389,95062.0,95061.0,0.15362627]
[1735782500802,0.211389,95062.0,95061.0,0.15762627]
[1735782500979,0.210389,95062.0,95061.0,0.23002627]
[1735782501185,0.211389,95062.0,95061.0,0.23502627]
[1735782501788,0.211389,95062.0,95061.0,0.23802627]
[1735782502407,0.210389,95062.0,95061.0,0.23302627]
[1735782502809,0.211389,95062.0,95061.0,0.23902627]
[1735782504813,0.515357,95062.0,95061.0,0.13603995]
[1735782505017,1.119094,95062.0,95061.0,0.009]
[1735782505217,1.13558035,95062.0,95061.0,0.009]
[1735782505800,1.03658035,95062.0,95061.0,0.009]
[1735782507024,0.97832535,95062.0,95061.0,0.009]
[1735782507229,0.91005435,95062.0,95061.0,0.009]
[1735782510135,0.50344435,95062.0,95061.0,0.009]
[1735782510315,0.486958,95062.0,95061.0,0.009]
[1735782510897,0.361389,95062.0,95061.0,0.009]
[1735782511965,0.361389,95062.0,95061.0,0.0854]
[1735782512703,0.602757,95062.0,95061.0,0.0854]
[1735782513594,0.61924379,95062.0,95061.0,0.0854]
[1735782513812,0.602757,95062.0,95061.0,0.0854]
[1735782514935,0.562277,95062.0,95061.0,0.0854]
[1735782515314,0.412277,95062.0,95061.0,0.0854]
[1735782516721,0.5624478,95062.0,95061.0,0.0854]
[1735782517613,0.3615598,95062.0,95061.0,0.0854]
[1735782518816,0.2115598,95062.0,95061.0,0.18938632]
[1735782519001,0.2115598,95062.0,95061.0,0.19372627]
[1735782519167,0.2115598,95062.0,95061.0,0.24012627]
[1735782519726,0.2115598,95062.0,95061.0,0.2641389]
[1735782519952,0.0011708,95062.0,95061.0,0.24012627]
[1735782520156,0.0011708,95062.0,95061.0,0.23712627]
[1735782520653,0.0011708,95062.0,95061.0,0.24012627]
[1735782520872,0.01765609,95062.0,95061.0,0.24012627]
[1735782521075,0.01765609,95062.0,95061.0,0.23712627]
[1735782521519,0.01765609,95062.0,95061.0,0.23612627]
[1735782521888,0.0021708,95062.0,95061.0,0.24312627]
[1735782522090,0.0021708,95062.0,95061.0,0.23612627]
[1735782522552,0.0031708,95062.0,95061.0,0.24512627]
[1735782524234,0.0031708,95062.0,95061.0,0.2696389]
[1735782524615,0.0031708,95062.0,95061.0,0.24512627]
[1735782526071,0.01965621,95062.0,95061.0,0.24512627]
[1735782527866,0.0001708,95067.0,95065.0,0.1]
[1735782528096,0.0001708,95067.0,95065.0,0.56356832]
[1735782528297,0.0001708,95067.0,95065.0,0.67189058]
[1735782529054,0.0011708,95066.0,95065.0,0.68089058]
[1735782529370,0.0001708,95066.0,95065.0,0.67189058]
[1735782529772,0.0011708,95066.0,95065.0,0.68089058]
[1735782530020,0.0021708,95066.0,95065.0,0.68689058]
[1735782530629,0.0011708,95066.0,95065.0,0.68089058]
[1735782530917,0.0021708,95066.0,95065.0,0.68889058]
[1735782531876,0.0021708,95066.0,95065.0,0.58490426]
[1735782538348,0.0021708,95066.0,95065.0,0.60155726]
[1735782544356,0.0021708,95066.0,95065.0,0.26817526]
[1735782544545,0.0021708,95066.0,95065.0,0.12532226]
[1735782544840,0.0021708,95066.0,95065.0,0.12098632]
[1735782545180,0.0021708,95066.0,95065.0,0.017]
[1735782545405,0.0778708,95066.0,95065.0,0.017]
[1735782545607,0.0778708,95066.0,95065.0,0.12098632]
[1735782545608,0.0021708,95066.0,95065.0,0.12098632]
[1735782546138,0.01765647,95066.0,95065.0,0.11198632]
[1735782546343,0.01665647,95066.0,95065.0,0.10898632]
[1735782546857,0.01765647,95066.0,95065.0,0.11498632]
[1735782547244,0.01665647,95066.0,95065.0,0.10898632]
[1735782547691,0.01665647,95066.0,95065.0,0.11198632]
[1735782548210,0.0001708,95066.0,95065.0,0.10698632]
[1735782548405,0.0001708,95066.0,95065.0,0.11298632]
[1735782548606,0.0001708,95066.0,95065.0,0.10698632]
[1735782548990,0.0001708,95066.0,95065.0,0.11298632]
[1735782549539,0.0001708,95066.0,95065.0,0.10998632]
[1735782549720,0.0001708,95066.0,95065.0,0.009]
[1735782550076,0.0001708,95066.0,95065.0,0.006]
[1735782550474,0.0001708,95066.0,95065.0,0.009]
[1735782551100,0.0001708,95066.0,95065.0,0.003]
[1735782551487,0.0001708,95066.0,95065.0,0.009]
[1735782551804,0.0001708,95066.0,95065.0,0.006]
[1735782552178,0.0001708,95066.0,95065.0,0.009]
[1735782554695,0.01665659,95066.0,95065.0,0.009]
[1735782555946,0.87842859,95066.0,95065.0,0.009]
[1735782556177,0.86718359,95066.0,95065.0,0.009]
[1735782556332,0.71514659,95066.0,95065.0,0.009]
[1735782556533,0.72932936,95066.0,95065.0,0.009]
[1735782557361,0.72932936,95066.0,95065.0,0.003]
[1735782557859,0.71284357,95066.0,95065.0,0.007]
[1735782558064,0.71284357,95066.0,95065.0,0.004]
[1735782558259,0.15,95065.0,95062.0,8.54e-05]
[1735782558461,1.247506,95065.0,95062.0,8.54e-05]
[1735782558782,0.360386,95063.0,95062.0,8.54e-05]
[1735782559026,0.992528,95063.0,95062.0,8.54e-05]
[1735782559196,0.832133,95063.0,95062.0,8.54e-05]
[1735782560522,0.84658032,95063.0,95062.0,8.54e-05]
[1735782560732,0.84658032,95063.0,95062.0,0.0040854]
[1735782560937,0.92918032,95063.0,95062.0,8.54e-05]
[1735782561341,0.92918032,95063.0,95062.0,0.0010854]
[1735782561759,0.92918032,95063.0,95062.0,0.0040854]
[1735782561967,0.92918032,95063.0,95062.0,0.0030854]
[1735782562168,0.93418032,95063.0,95062.0,8.54e-05]
[1735782562366,0.93518032,95063.0,95062.0,8.54e-05]
[1735782562568,0.95166884,95063.0,95062.0,8.54e-05]
[1735782562994,0.95066884,95063.0,95062.0,8.54e-05]
[1735782563202,0.95166884,95063.0,95062.0,8.54e-05]
[1735782564059,0.94666884,95063.0,95062.0,8.54e-05]
[1735782564256,0.95066884,95063.0,95062.0,8.54e-05]
[1735782564661,0.94966884,95063.0,95062.0,8.54e-05]
[1735782564860,0.95466884,95063.0,95062.0,8.54e-05]
[1735782565059,0.95066884,95063.0,95062.0,8.54e-05]
[1735782565413,0.94566884,95063.0,95062.0,8.54e-05]
[1735782565546,0.94966884,95063.0,95062.0,8.54e-05]
[1735782565727,0.94666884,95063.0,95062.0,8.54e-05]
[1735782566305,0.94566884,95063.0,95062.0,8.54e-05]
[1735782566677,0.94666884,95063.0,95062.0,8.54e-05]
[1735782567125,0.0826,95062.0,95061.0,8e-07]
[1735782567293,3.429898,95062.0,95061.0,8e-07]
[1735782567494,0.2474427,95062.0,95061.0,8e-07]
[1735782568119,0.43888181,95062.0,95061.0,8e-07]
[1735782568535,0.43988181,95062.0,95061.0,8e-07]
[1735782568954,0.64386813,95062.0,95061.0,8e-07]
[1735782569186,0.45642902,95062.0,95061.0,8e-07]
[1735782571223,0.64408823,95062.0,95061.0,8e-07]
[1735782572193,0.47291858,95062.0,95061.0,8e-07]
[1735782577598,0.45642902,95062.0,95061.0,8e-07]
[1735782578096,0.35642902,95062.0,95061.0,8e-07]
[1735782578299,0.155,95062.0,95061.0,8e-07]
[1735782579207,0.005,95062.0,95061.0,8e-07]
[1735782579410,0.005,95062.0,95061.0,0.0793008]
[1735782579650,0.155,95062.0,95061.0,0.0793008]
[1735782579854,0.151,95062.0,95061.0,0.0793008]
[1735782580148,0.154,95062.0,95061.0,0.0793008]
[1735782580289,0.155,95062.0,95061.0,0.0793008]
[1735782580712,0.005,95062.0,95061.0,0.0793008]
[1735782580911,0.15,95062.0,95061.0,0.0793008]
[1735782581118,0.15,95062.0,95061.0,0.18528712]
[1735782581322,0.210386,95063.0,95062.0,0.0482]
[1735782581491,0.210386,95063.0,95062.0,0.15218632]
[1735782581697,0.210386,95063.0,95062.0,0.15652526]
[1735782582499,0.22687205,95063.0,95062.0,0.15652526]
[1735782583642,0.22687205,95063.0,95062.0,0.16152526]
[1735782583844,0.22687205,95063.0,95062.0,0.15952526]
[1735782584120,0.22687205,95063.0,95062.0,0.16752526]
[1735782584330,0.22687205,95063.0,95062.0,0.16452526]
[1735782584923,0.22687205,95063.0,95062.0,0.16852526]
[1735782585204,0.22687205,95063.0,95062.0,0.16861066]
[1735782585849,0.01648605,95063.0,95062.0,0.16861066]
[1735782586046,0.01648605,95063.0,95062.0,0.27270181]
[1735782586972,0.01648605,95063.0,95062.0,0.26870181]
[1735782587172,0.01648605,95063.0,95062.0,0.26070181]
[1735782587299,0.01648605,95063.0,95062.0,0.27370181]
[1735782587662,0.0001708,95066.0,95062.0,0.24891066]
[1735782587819,0.0001708,95066.0,95063.0,0.10398632]
[1735782588015,0.1501708,95066.0,95063.0,0.10398632]
[1735782588220,0.1501708,95066.0,95064.0,0.00433694]
[1735782588448,0.1501708,95066.0,95065.0,0.10398632]
[1735782588822,0.1501708,95066.0,95065.0,0.10832226]
[1735782590151,0.1501708,95066.0,95065.0,0.11132226]
[1735782590609,0.1501708,95066.0,95065.0,0.11832226]
[1735782591034,0.0001708,95066.0,95065.0,0.19532226]
[1735782591204,0.0001708,95066.0,95065.0,0.24402226]
[1735782592718,0.0001708,95066.0,95065.0,0.23402226]
[1735782592918,0.0001708,95066.0,95065.0,0.23702226]
[1735782593328,0.0001708,95066.0,95065.0,0.23402226]
[1735782593540,0.0001708,95066.0,95065.0,0.24102226]
[1735782593771,0.0001708,95066.0,95065.0,0.2601648]
[1735782594255,0.0001708,95066.0,95065.0,0.2741648]
[1735782597555,0.0001708,95066.0,95065.0,0.24802226]
[1735782600501,0.0001708,95066.0,95065.0,0.24302226]
[1735782600730,0.0001708,95066.0,95065.0,0.24802226]
[1735782600933,0.0001708,95066.0,95065.0,0.12232226]
[1735782602181,0.0001708,95066.0,95065.0,0.11732226]
[1735782602387,0.0001708,95066.0,95065.0,0.10832226]
[1735782602589,0.0001708,95066.0,95065.0,0.11332226]
[1735782602876,0.0001708,95066.0,95065.0,0.11732226]
[1735782603023,0.01665596,95066.0,95065.0,0.11732226]
[1735782603228,0.01665596,95066.0,95065.0,0.12132226]
[1735782603521,0.01665596,95066.0,95065.0,0.11232226]
[1735782603720,0.01665596,95066.0,95065.0,0.12132226]
[1735782603944,0.01665596,95066.0,95065.0,0.11732226]
[1735782604845,0.01665596,95066.0,95065.0,0.24302226]
[1735782605418,0.01665596,95066.0,95065.0,0.24802226]
[1735782605811,0.01665596,95066.0,95065.0,0.24302226]
[1735782606172,0.01665596,95066.0,95065.0,0.24802226]
[1735782606516,0.01665596,95066.0,95065.0,0.23402226]
[1735782606721,0.01665596,95066.0,95065.0,0.24302226]
[1735782607061,0.01665596,95066.0,95065.0,0.24902226]
[1735782607269,0.01665596,95066.0,95065.0,0.45300858]
[1735782607847,0.01665596,95066.0,95065.0,0.55300858]
[1735782608050,0.01665596,95066.0,95065.0,0.54400858]
[1735782608051,0.0001708,95066.0,95065.0,0.54400858]
[1735782608263,0.0001708,95066.0,95065.0,0.55300858]
[1735782608684,0.0001708,95066.0,95065.0,0.56100858]
[1735782608882,0.0001708,95066.0,95065.0,0.57000858]
[1735782609123,0.0001708,95066.0,95065.0,0.56100858]
[1735782609554,0.0001708,95066.0,95065.0,0.57000858]
[1735782609774,0.0001708,95066.0,95065.0,0.56700858]
[1735782610181,0.0001708,95066.0,95065.0,0.56100858]
[1735782611141,0.0001708,95066.0,95065.0,0.57000858]
[1735782611385,0.0001708,95066.0,95065.0,0.56100858]
[1735782611529,0.0001708,95066.0,95065.0,0.56900858]
[1735782611530,0.0011708,95066.0,95065.0,0.56900858]
[1735782611727,0.0011708,95066.0,95065.0,0.57800858]
[1735782612137,0.0001708,95066.0,95065.0,0.57000858]
[1735782612343,0.0011708,95066.0,95065.0,0.57800858]
[1735782612568,0.0011708,95066.0,95065.0,0.56900858]
[1735782612965,0.0001708,95066.0,95065.0,0.57000858]
[1735782613255,0.0011708,95066.0,95065.0,0.57900858]
[1735782614108,0.0001708,95067.0,95066.0,0.71148]
[1735782614477,0.0001708,95079.0,95078.0,0.561453]
[1735782614679,0.0001708,95079.0,95078.0,0.66543932]
[1735782614866,0.0001708,95079.0,95078.0,0.66976222]
[1735782615681,0.01673393,95079.0,95078.0,0.67876222]
[1735782616101,0.00025395,95079.0,95078.0,0.67876222]
[1735782616321,0.00125395,95079.0,95078.0,0.79074854]
[1735782617474,0.00125395,95079.0,95078.0,0.79974854]
[1735782618529,0.00125395,95079.0,95078.0,0.91074854]
[1735782618731,0.00125395,95079.0,95078.0,0.79974854]
[1735782619504,0.00125395,95079.0,95078.0,0.47276222]
[1735782620133,0.00125395,95079.0,95078.0,0.13430922]
[1735782621398,0.00025395,95079.0,95078.0,0.12630922]
[1735782621601,0.00025395,95079.0,95078.0,0.10830922]
[1735782621823,0.00025395,95079.0,95078.0,0.12230922]
[1735782622274,0.00025395,95079.0,95078.0,0.10830922]
[1735782622626,0.01673674,95079.0,95078.0,0.11230922]
[1735782623031,0.01673674,95079.0,95078.0,0.10830922]
[1735782623572,0.01673674,95079.0,95078.0,0.11730922]
[1735782623976,0.01673674,95079.0,95078.0,0.10830922]
[1735782624135,0.01673674,95079.0,95078.0,0.11730922]
[1735782624693,0.01673674,95079.0,95078.0,0.12130922]
[1735782625151,0.01673674,95079.0,95078.0,0.13344014]
[1735782626157,0.01673674,95079.0,95078.0,0.11730922]
[1735782626458,0.01673674,95079.0,95078.0,0.12130922]
[1735782626754,0.01673674,95079.0,95078.0,0.11230922]
[1735782626958,0.01673674,95079.0,95078.0,0.12130922]
[1735782628383,0.00025395,95079.0,95078.0,0.12130922]
[1735782628544,0.00025395,95079.0,95078.0,0.11730922]
[1735782628955,0.00025395,95079.0,95078.0,0.12230922]
[1735782629393,0.00025395,95079.0,95078.0,0.16455519]
[1735782629702,0.00025395,95079.0,95078.0,0.15555519]
[1735782630165,0.00025395,95079.0,95078.0,0.16455519]
[1735782630454,0.00025395,95079.0,95078.0,0.26455519]
[1735782631154,0.00025395,95079.0,95078.0,0.34665519]
[1735782632062,0.00025395,95079.0,95078.0,0.34830807]
[1735782632567,0.00025395,95079.0,95078.0,0.34330807]
[1735782632723,0.00025395,95079.0,95078.0,0.34830807]
[1735782632951,0.00025395,95079.0,95078.0,0.33930807]
[1735782633136,0.00025395,95079.0,95078.0,0.34330807]
[1735782634127,0.00025395,95079.0,95078.0,0.46630807]
[1735782634571,0.00025395,95079.0,95078.0,0.47230807]
[1735782635419,0.00025395,95079.0,95078.0,0.46630807]
[1735782635622,0.00025395,95079.0,95078.0,0.47330807]
[1735782635951,0.00025395,95079.0,95078.0,0.46430807]
[1735782636124,0.00025395,95079.0,95078.0,0.45730807]
[1735782636325,0.00025395,95079.0,95078.0,0.46630807]
[1735782636575,0.00025395,95079.0,95078.0,0.46430807]
[1735782636892,0.00025395,95079.0,95078.0,0.47330807]
[1735782637555,0.00025395,95079.0,95078.0,0.45030807]
[1735782637965,0.00025395,95079.0,95078.0,0.44330807]
[1735782638387,0.00025395,95079.0,95078.0,0.4080621]
[1735782638808,0.00025395,95079.0,95078.0,0.4010621]
[1735782639009,0.00025395,95079.0,95078.0,0.3990621]
[1735782639346,0.00025395,95079.0,95078.0,0.4080621]
[1735782639547,0.00025395,95079.0,95078.0,0.4150621]
[1735782639769,0.00025395,95079.0,95078.0,0.50431208]
[1735782640016,0.00025395,95079.0,95078.0,0.52031208]
[1735782640614,0.00025395,95079.0,95078.0,0.42031208]
[1735782640820,0.00025395,95079.0,95078.0,0.52031208]
[1735782645725,0.01673442,95079.0,95078.0,0.52031208]
[1735782648289,0.00025395,95079.0,95078.0,0.52031208]
[1735782653470,0.00025395,95079.0,95078.0,0.1259621]
[1735782654487,0.00025395,95079.0,95078.0,0.1189621]
[1735782654912,0.00025395,95079.0,95078.0,0.11698632]
[1735782655349,0.00025395,95079.0,95078.0,0.11298632]
[1735782655507,0.00025395,95079.0,95078.0,0.11598632]
[1735782655721,0.00025395,95079.0,95078.0,0.10698632]
[1735782656828,0.00025395,95079.0,95078.0,0.11598632]
[1735782657048,0.00025395,95079.0,95078.0,0.10398632]
[1735782657415,0.01673674,95079.0,95078.0,0.10698632]
[1735782657614,0.01673674,95079.0,95078.0,0.11498632]
[1735782657784,0.00025395,95079.0,95078.0,0.10398632]
[1735782658418,0.00025395,95079.0,95078.0,0.10598632]
[1735782658954,0.00025395,95079.0,95078.0,0.11398632]
[1735782662596,0.00025395,95079.0,95078.0,0.12538495]
[1735782663177,0.00025395,95079.0,95078.0,0.11398632]
[1735782665517,0.07755395,95079.0,95078.0,0.01]
[1735782665721,0.28417436,95079.0,95078.0,0.01]
[1735782665930,0.30065777,95079.0,95078.0,0.002]
[1735782666103,0.2278,95078.0,95067.0,8.53e-05]
[1735782666311,0.210375,95068.0,95067.0,8.53e-05]
[1735782667057,0.288175,95068.0,95067.0,8.53e-05]
[1735782667304,0.30465983,95068.0,95067.0,0.0020853]
[1735782667558,0.30465983,95068.0,95067.0,0.0100853]
[1735782667755,0.30465983,95068.0,95067.0,8.53e-05]
[1735782668158,0.288175,95068.0,95067.0,8.53e-05]
[1735782668980,0.288175,95068.0,95067.0,0.0040853]
[1735782669394,0.210375,95068.0,95067.0,8.53e-05]
[1735782669571,0.210364,95074.0,95067.0,0.10407162]
[1735782669926,0.210355,95078.0,95068.0,0.13308809]
[1735782671386,0.210355,95078.0,95068.0,0.10997231]
[1735782671788,0.210364,95074.0,95068.0,0.11197231]
[1735782672405,0.210364,95074.0,95068.0,0.11997231]
[1735782672744,0.210364,95074.0,95068.0,0.11197231]
[1735782672975,0.01648302,95073.0,95068.0,0.11897231]
[1735782673310,0.01648302,95073.0,95068.0,0.12197231]
[1735782673794,0.01648302,95073.0,95068.0,0.11897231]
[1735782674147,0.420735,95072.0,95068.0,0.12197231]
[1735782674345,0.420735,95072.0,95068.0,0.11598632]
[1735782674959,0.420735,95072.0,95068.0,0.11298632]
[1735782675745,0.420735,95072.0,95068.0,0.10398632]
[1735782675953,0.420735,95072.0,95068.0,0.11298632]
[1735782676368,0.420735,95072.0,95068.0,0.10798632]
[1735782676763,0.420735,95072.0,95068.0,0.11298632]
[1735782677166,0.420735,95072.0,95068.0,0.11598632]
[1735782677375,0.210371,95070.0,95068.0,0.11598632]
[1735782677698,0.210371,95070.0,95068.0,0.11298632]
[1735782677870,0.210371,95070.0,95068.0,0.11498632]
[1735782678437,0.210371,95070.0,95068.0,0.10598632]
[1735782679125,0.210371,95070.0,95068.0,0.11298632]
[1735782679455,0.210371,95070.0,95068.0,0.10598632]
[1735782679798,0.210371,95070.0,95068.0,0.10398632]
[1735782679939,0.210371,95070.0,95068.0,0.10598632]
[1735782680138,0.210371,95070.0,95068.0,0.11298632]
[1735782680340,0.210371,95070.0,95068.0,0.10398632]
[1735782680562,0.210371,95070.0,95068.0,0.11098632]
[1735782680996,0.210371,95070.0,95068.0,0.11298632]
[1735782685017,0.0001706,95072.0,95068.0,0.11298632]
[1735782685230,0.0001706,95072.0,95070.0,0.0792]
[1735782685445,0.0001706,95072.0,95071.0,0.10398632]
[1735782685649,0.0001706,95072.0,95071.0,0.10996925]
[1735782686876,0.01665311,95072.0,95071.0,0.11896925]
[1735782687085,0.01665311,95072.0,95071.0,0.18775198]
[1735782687518,0.01665311,95072.0,95071.0,0.20075198]
[1735782687977,0.01665311,95072.0,95071.0,0.12296925]
[1735782688311,0.0001706,95072.0,95071.0,0.12296925]
[1735782690245,0.0001706,95072.0,95071.0,0.10996925]
[1735782690467,0.0001706,95072.0,95071.0,0.11396925]
[1735782690650,0.0001706,95072.0,95071.0,0.12296925]
[1735782691073,0.0001706,95072.0,95071.0,0.11896925]
[1735782691337,0.0001706,95072.0,95071.0,0.12296925]
[1735782692698,0.0001706,95072.0,95071.0,0.11396925]
[1735782692900,0.0001706,95072.0,95071.0,0.12296925]
[1735782693128,0.0001706,95072.0,95071.0,0.18692041]
[1735782693642,0.0001706,95072.0,95071.0,0.19992041]
[1735782693845,0.0001706,95072.0,95071.0,0.12296925]
[1735782694026,0.0001706,95072.0,95071.0,0.11896925]
[1735782694391,0.0001706,95072.0,95071.0,0.12296925]
[1735782694966,0.0001706,95072.0,95071.0,0.11896925]
[1735782695094,0.0001706,95072.0,95071.0,0.12296925]
[1735782695593,0.0001706,95072.0,95071.0,0.12402095]
[1735782695803,0.0001706,95072.0,95071.0,0.11502095]
[1735782695965,0.0001706,95072.0,95071.0,0.12402095]
[1735782696343,0.0001706,95072.0,95071.0,0.12002095]
[1735782696727,0.0001706,95072.0,95071.0,0.12402095]
[1735782698298,0.0001706,95072.0,95071.0,0.30107718]
[1735782698476,0.0001706,95072.0,95071.0,0.30002548]
[1735782698904,0.0001706,95072.0,95071.0,0.22296925]
[1735782699332,0.0001706,95072.0,95071.0,0.21396925]
[1735782699952,0.0001706,95072.0,95071.0,0.20996925]
[1735782700235,0.0001706,95072.0,95071.0,0.22396925]
[1735782700636,0.0001706,95072.0,95071.0,0.21896925]
[1735782700764,0.0001706,95072.0,95071.0,0.30996925]
[1735782700979,0.0001706,95072.0,95071.0,0.31596925]
[1735782701376,0.0001706,95072.0,95071.0,0.32411252]
[1735782701831,0.0001706,95072.0,95071.0,0.33011252]
[1735782702252,0.0001706,95072.0,95071.0,0.40791252]
[1735782702621,0.0001706,95072.0,95071.0,0.41691252]
[1735782703033,0.0001706,95072.0,95071.0,0.40191252]
[1735782703269,0.0001706,95072.0,95071.0,0.40791252]
[1735782703469,0.0001706,95072.0,95071.0,0.41691252]
[1735782703786,0.0001706,95072.0,95071.0,0.40191252]
[1735782704254,0.0001706,95072.0,95071.0,0.40376925]
[1735782704399,0.0001706,95072.0,95071.0,0.39476925]
[1735782704607,0.0001706,95072.0,95071.0,0.38776925]
[1735782704804,0.0001706,95072.0,95071.0,0.39476925]
[1735782705914,0.0001706,95072.0,95071.0,0.40376925]
[1735782706046,0.0001706,95072.0,95071.0,0.39476925]
[1735782706469,0.0001706,95072.0,95071.0,0.40376925]
[1735782706649,0.0001706,95072.0,95071.0,0.39476925]
[1735782706847,0.0001706,95072.0,95071.0,0.38776925]
[1735782707044,0.0001706,95072.0,95071.0,0.40376925]
[1735782707251,0.0001706,95072.0,95071.0,0.39476925]
[1735782707621,0.0001706,95072.0,95071.0,0.40376925]
[1735782707819,0.0001706,95072.0,95071.0,0.39676925]
[1735782708236,0.0001706,95072.0,95071.0,0.12496925]
[1735782708564,0.0001706,95072.0,95071.0,0.11896925]
[1735782708768,0.0001706,95072.0,95071.0,0.10996925]
[1735782709192,0.0001706,95072.0,95071.0,0.11298632]
[1735782709395,0.0001706,95072.0,95071.0,0.10398632]
[1735782709897,0.0001706,95072.0,95071.0,0.11298632]
[1735782710106,0.0001706,95072.0,95071.0,0.10398632]
[1735782710361,0.0001706,95072.0,95071.0,0.11298632]
[1735782710516,0.0001706,95072.0,95071.0,0.11898632]
[1735782710718,0.0001706,95072.0,95071.0,0.12496925]
[1735782710943,0.0001706,95072.0,95071.0,0.11896925]
[1735782711309,0.0001706,95072.0,95071.0,0.12296925]
[1735782712615,0.0001706,95072.0,95071.0,0.11396925]
[1735782713004,0.01665333,95072.0,95071.0,0.12296925]
[1735782713153,0.01665333,95072.0,95071.0,0.11396925]
[1735782713571,0.01665333,95072.0,95071.0,0.12296925]
[1735782713745,0.01665333,95072.0,95071.0,0.11896925]
[1735782713984,0.01665333,95072.0,95071.0,0.1869503]
[1735782714200,0.01665333,95072.0,95071.0,0.26826925]
[1735782714409,0.01665333,95072.0,95071.0,0.25926925]
[1735782714619,0.0001706,95072.0,95071.0,0.35526925]
[1735782714838,0.01665174,95072.0,95071.0,0.35926925]
[1735782715258,0.0001706,95072.0,95071.0,0.35526925]
[1735782715462,0.0001706,95072.0,95071.0,0.53645557]
[1735782715662,0.0001706,95072.0,95071.0,0.54945557]
[1735782716117,0.0001706,95072.0,95071.0,0.54045557]
[1735782716323,0.0001706,95072.0,95071.0,0.54945557]
[1735782716866,0.01665128,95072.0,95071.0,0.53645557]
[1735782717073,0.01665128,95072.0,95071.0,0.55145557]
[1735782717496,0.0001706,95072.0,95071.0,0.55145557]
[1735782717697,0.0001706,95072.0,95071.0,0.54545557]
[1735782718031,0.0001706,95072.0,95071.0,0.55245557]
[1735782718527,0.0001706,95072.0,95071.0,0.54545557]
[1735782718684,0.0001706,95072.0,95071.0,0.53645557]
[1735782718875,0.0001706,95072.0,95071.0,0.56864262]
[1735782719375,0.0001706,95072.0,95071.0,0.55964262]
[1735782719549,0.0001706,95072.0,95071.0,0.56864262]